[Event "Live Chess"]
[Site "Chess.com"]
[Date "2023.05.21"]
[Round "-"]
[White "davigator"]
[Black "whatnot126"]
[Result "1-0"]
[WhiteElo "2305"]
[BlackElo "2067"]
[TimeControl "300"]
[EndTime "8:13:59 PDT"]
[Termination "davigator won by checkmate"]

1. e4 {[%clk 0:04:58.6]} 1... d6 {[%clk 0:04:59.4]} 2. d4 {[%clk 0:04:56.2]}
2... Nf6 {[%clk 0:04:59]} 3. Nc3 {[%clk 0:04:54.7]} 3... g6 {[%clk 0:04:58.6]}
4. Bg5 {[%clk 0:04:52.6]} 4... Bg7 {[%clk 0:04:58.1]} 5. f3 {[%clk 0:04:51.5]}
5... c6 {[%clk 0:04:54.3]} 6. Qd2 {[%clk 0:04:50.7]} 6... Qa5 {[%clk 0:04:53.6]}
7. O-O-O {[%clk 0:04:49.6]} 7... b5 {[%clk 0:04:52.9]} 8. Kb1 {[%clk 0:04:48.1]}
8... Nbd7 {[%clk 0:04:47.9]} 9. Bh6 {[%clk 0:04:45.6]} 9... Bxh6 {[%clk
0:04:46.9]} 10. Qxh6 {[%clk 0:04:44.6]} 10... Nb6 {[%clk 0:04:31.8]} 11. Nce2
{[%clk 0:04:41.2]} 11... Be6 {[%clk 0:04:27.5]} 12. Nc1 {[%clk 0:04:38.6]} 12...
Nc4 {[%clk 0:04:18.3]} 13. Bxc4 {[%clk 0:04:37.4]} 13... bxc4 {[%clk 0:04:15.8]}
14. c3 {[%clk 0:04:33.6]} 14... Rb8 {[%clk 0:04:09.5]} 15. Ka1 {[%clk
0:04:32.5]} 15... Kd7 {[%clk 0:03:53.1]} 16. Nge2 {[%clk 0:04:31]} 16... Rb6
{[%clk 0:03:44.2]} 17. Rd2 {[%clk 0:04:28.5]} 17... Ra6 {[%clk 0:03:40]} 18. g4
{[%clk 0:04:24.9]} 18... c5 {[%clk 0:03:23.9]} 19. d5 {[%clk 0:04:16.8]} 19...
Bxg4 {[%clk 0:03:16.1]} 20. fxg4 {[%clk 0:04:11.1]} 20... Nxg4 {[%clk 0:03:16]}
21. Qf4 {[%clk 0:04:05.8]} 21... Nf6 {[%clk 0:03:11.9]} 22. e5 {[%clk
0:03:59.6]} 22... dxe5 {[%clk 0:03:10.7]} 23. Qxe5 {[%clk 0:03:58.8]} 23... Rd8
{[%clk 0:03:04.9]} 24. Re1 {[%clk 0:03:51.3]} 24... Qc7 {[%clk 0:02:51.1]} 25.
Qe3 {[%clk 0:03:38.4]} 25... Ke8 {[%clk 0:02:49.6]} 26. Nf4 {[%clk 0:03:35.4]}
26... Kf8 {[%clk 0:02:45.7]} 27. h4 {[%clk 0:03:31.6]} 27... Ng4 {[%clk
0:02:36.2]} 28. Qe4 {[%clk 0:03:23.6]} 28... Nf6 {[%clk 0:02:27.7]} 29. Qxc4
{[%clk 0:03:22.2]} 29... Rb6 {[%clk 0:02:24.2]} 30. b3 {[%clk 0:03:19.2]} 30...
a5 {[%clk 0:02:20.9]} 31. Nce2 {[%clk 0:02:59.5]} 31... Qe5 {[%clk 0:02:14.6]}
32. Kb1 {[%clk 0:02:52.3]} 32... Rdb8 {[%clk 0:02:01.4]} 33. Kc2 {[%clk
0:02:49.2]} 33... Qf5+ {[%clk 0:01:52.2]} 34. Qd3 {[%clk 0:02:45.7]} 34... Ne4
{[%clk 0:01:50.3]} 35. Rdd1 {[%clk 0:02:36.3]} 35... a4 {[%clk 0:01:48.5]} 36.
Nc1 {[%clk 0:02:31.7]} 36... Qxf4 {[%clk 0:01:47.1]} 37. Rxe4 {[%clk 0:02:30.2]}
37... axb3+ {[%clk 0:01:36.3]} 38. axb3 {[%clk 0:02:28.3]} 38... Qc7 {[%clk
0:01:29.4]} 39. c4 {[%clk 0:02:20.8]} 39... Qa7 {[%clk 0:01:27.6]} 40. Qe3
{[%clk 0:02:16.4]} 40... Rf6 {[%clk 0:01:19.3]} 41. Re1 {[%clk 0:02:08.9]} 41...
Rb7 {[%clk 0:01:12.9]} 42. Re2 {[%clk 0:02:05]} 42... h5 {[%clk 0:01:11.9]} 43.
Qh6+ {[%clk 0:02:02.1]} 43... Kg8 {[%clk 0:01:09.9]} 44. Qg5 {[%clk 0:01:58.1]}
44... Kg7 {[%clk 0:01:07.8]} 45. Qe5 {[%clk 0:01:56.2]} 45... Kf8 {[%clk
0:01:06.2]} 46. Rf4 {[%clk 0:01:52]} 46... Ra6 {[%clk 0:00:59.9]} 47. Qh8#
{[%clk 0:01:49.3]} 1-0

[Event "Live Chess"]
[Site "Chess.com"]
[Date "2023.05.21"]
[Round "-"]
[White "MartinWalker4"]
[Black "GMHarry-youtube"]
[Result "1-0"]
[WhiteElo "2093"]
[BlackElo "2006"]
[TimeControl "300"]
[EndTime "8:14:04 PDT"]
[Termination "MartinWalker4 won by resignation"]

1. e4 {[%clk 0:04:56.3]} 1... c5 {[%clk 0:04:58.6]} 2. Nf3 {[%clk 0:04:54.4]}
2... d6 {[%clk 0:04:58.2]} 3. Bb5+ {[%clk 0:04:52.4]} 3... Bd7 {[%clk
0:04:57.2]} 4. Bxd7+ {[%clk 0:04:50.7]} 4... Qxd7 {[%clk 0:04:57.1]} 5. O-O
{[%clk 0:04:49.2]} 5... Nc6 {[%clk 0:04:56.5]} 6. c3 {[%clk 0:04:47.2]} 6... d5
{[%clk 0:04:56]} 7. exd5 {[%clk 0:04:44.8]} 7... Qxd5 {[%clk 0:04:55.9]} 8. d4
{[%clk 0:04:43.6]} 8... Nf6 {[%clk 0:04:52.2]} 9. Be3 {[%clk 0:04:41.5]} 9...
cxd4 {[%clk 0:04:49.8]} 10. cxd4 {[%clk 0:04:39.5]} 10... e6 {[%clk 0:04:49]}
11. Nc3 {[%clk 0:04:37.8]} 11... Qd8 {[%clk 0:04:40]} 12. Qb3 {[%clk 0:04:31]}
12... b6 {[%clk 0:04:36.5]} 13. Rac1 {[%clk 0:04:26.3]} 13... Bd6 {[%clk
0:04:31.6]} 14. Nb5 {[%clk 0:04:21.8]} 14... Rc8 {[%clk 0:04:23.8]} 15. Ne5
{[%clk 0:03:54]} 15... Nxe5 {[%clk 0:04:12.9]} 16. Rxc8 {[%clk 0:03:50.8]} 16...
Qxc8 {[%clk 0:04:06.2]} 17. Nxd6+ {[%clk 0:03:49.6]} 17... Kd7 {[%clk
0:04:05.6]} 18. Nxc8 {[%clk 0:03:48.4]} 1-0

[Event "Live Chess"]
[Site "Chess.com"]
[Date "2023.05.21"]
[Round "-"]
[White "garyjc"]
[Black "SinisterSide"]
[Result "1-0"]
[WhiteElo "1080"]
[BlackElo "490"]
[TimeControl "300"]
[EndTime "8:14:10 PDT"]
[Termination "garyjc won by checkmate"]

1. e4 {[%clk 0:04:57.5]} 1... e5 {[%clk 0:04:54.6]} 2. Nf3 {[%clk 0:04:55.3]}
2... Nc6 {[%clk 0:04:54]} 3. d4 {[%clk 0:04:54.1]} 3... d6 {[%clk 0:04:50.9]} 4.
d5 {[%clk 0:04:49.3]} 4... Nd4 {[%clk 0:04:48.7]} 5. Nxd4 {[%clk 0:04:47.9]}
5... exd4 {[%clk 0:04:46.8]} 6. Qxd4 {[%clk 0:04:46.6]} 6... Nf6 {[%clk
0:04:45.8]} 7. Nc3 {[%clk 0:04:41]} 7... c5 {[%clk 0:04:37.2]} 8. Qd3 {[%clk
0:04:34.2]} 8... Be7 {[%clk 0:04:30.2]} 9. Be2 {[%clk 0:04:26.7]} 9... O-O
{[%clk 0:04:28.6]} 10. O-O {[%clk 0:04:13.6]} 10... Bg4 {[%clk 0:04:27.9]} 11.
Bg5 {[%clk 0:04:01.4]} 11... Bxe2 {[%clk 0:04:23.6]} 12. Qxe2 {[%clk 0:03:57]}
12... Nd7 {[%clk 0:04:16.7]} 13. Be3 {[%clk 0:03:47.3]} 13... Bg5 {[%clk
0:04:13.8]} 14. Bxg5 {[%clk 0:03:41.6]} 14... Qxg5 {[%clk 0:04:13.7]} 15. f4
{[%clk 0:03:39.4]} 15... Qd8 {[%clk 0:04:10.4]} 16. f5 {[%clk 0:03:31.1]} 16...
Ne5 {[%clk 0:04:06.7]} 17. f6 {[%clk 0:03:19]} 17... gxf6 {[%clk 0:04:03.5]} 18.
Qe3 {[%clk 0:02:57.5]} 18... Qe7 {[%clk 0:03:50.3]} 19. Qg3+ {[%clk 0:02:49.9]}
19... Ng6 {[%clk 0:03:48.7]} 20. h4 {[%clk 0:02:41.9]} 20... h5 {[%clk
0:03:42.3]} 21. Rf5 {[%clk 0:02:30.7]} 21... Kh8 {[%clk 0:03:31.8]} 22. Rxh5+
{[%clk 0:02:29]} 22... Kg7 {[%clk 0:03:29.5]} 23. Rf5 {[%clk 0:02:20.3]} 23...
Rh8 {[%clk 0:03:26.5]} 24. h5 {[%clk 0:02:16]} 24... Kf8 {[%clk 0:03:14.1]} 25.
hxg6 {[%clk 0:02:10.5]} 25... fxg6 {[%clk 0:03:13.7]} 26. Qxg6 {[%clk
0:01:59.2]} 26... Qg7 {[%clk 0:03:11.6]} 27. Rxf6+ {[%clk 0:01:54.9]} 27... Kg8
{[%clk 0:03:05.4]} 28. Qf5 {[%clk 0:01:46.2]} 28... Rf8 {[%clk 0:02:58.8]} 29.
Qe6+ {[%clk 0:01:43.1]} 29... Kh7 {[%clk 0:02:56]} 30. Rxf8 {[%clk 0:01:11.4]}
30... Rxf8 {[%clk 0:02:54.6]} 31. Qh3+ {[%clk 0:01:06.1]} 31... Kg8 {[%clk
0:02:53.6]} 32. Nb5 {[%clk 0:01:02.1]} 32... Qh7 {[%clk 0:02:52]} 33. Qg3+
{[%clk 0:00:59]} 33... Qg7 {[%clk 0:02:50.7]} 34. Qxg7+ {[%clk 0:00:53.4]} 34...
Kxg7 {[%clk 0:02:50.6]} 35. Nxd6 {[%clk 0:00:52.5]} 35... b6 {[%clk 0:02:44.1]}
36. a4 {[%clk 0:00:49.2]} 36... Rd8 {[%clk 0:02:38.9]} 37. Nf5+ {[%clk
0:00:47.1]} 37... Kh8 {[%clk 0:02:33.1]} 38. Rf1 {[%clk 0:00:45.2]} 38... Re8
{[%clk 0:02:29.1]} 39. d6 {[%clk 0:00:36.5]} 39... Rxe4 {[%clk 0:02:26.8]} 40.
d7 {[%clk 0:00:34.5]} 40... Rd4 {[%clk 0:02:12.9]} 41. Re1 {[%clk 0:00:27.5]}
41... Rxd7 {[%clk 0:02:11]} 42. Re8+ {[%clk 0:00:27.1]} 42... Kh7 {[%clk
0:02:09.7]} 43. Re3 {[%clk 0:00:22.6]} 43... Rg7 {[%clk 0:02:07.5]} 44. Nxg7
{[%clk 0:00:19.8]} 44... Kxg7 {[%clk 0:02:07.4]} 45. Re7+ {[%clk 0:00:18.7]}
45... Kf6 {[%clk 0:02:06.8]} 46. Rxa7 {[%clk 0:00:18.6]} 46... Ke5 {[%clk
0:02:06]} 47. Ra6 {[%clk 0:00:18]} 47... Kd5 {[%clk 0:02:05.5]} 48. Rxb6 {[%clk
0:00:17.3]} 48... c4 {[%clk 0:02:04.2]} 49. a5 {[%clk 0:00:16.4]} 49... Kd4
{[%clk 0:02:03.6]} 50. a6 {[%clk 0:00:15.4]} 50... c3 {[%clk 0:02:02.9]} 51. a7
{[%clk 0:00:15.1]} 51... cxb2 {[%clk 0:02:02.4]} 52. Rxb2 {[%clk 0:00:13.9]}
52... Kc3 {[%clk 0:02:01.9]} 53. Rb8 {[%clk 0:00:11.9]} 53... Kxc2 {[%clk
0:02:00.7]} 54. a8=Q {[%clk 0:00:11.1]} 54... Kd2 {[%clk 0:02:00.2]} 55. Rb2+
{[%clk 0:00:09.5]} 55... Ke3 {[%clk 0:01:59.4]} 56. Qa3+ {[%clk 0:00:07.8]}
56... Kd4 {[%clk 0:01:58.4]} 57. Rb4+ {[%clk 0:00:06.6]} 57... Ke5 {[%clk
0:01:57.3]} 58. Qa5+ {[%clk 0:00:05.8]} 58... Kf6 {[%clk 0:01:56.5]} 59. Rb6+
{[%clk 0:00:05]} 59... Kg7 {[%clk 0:01:55.8]} 60. Qa7+ {[%clk 0:00:04.4]} 60...
Kh8 {[%clk 0:01:54]} 61. Rb8# {[%clk 0:00:04.3]} 1-0

[Event "Live Chess"]
[Site "Chess.com"]
[Date "2023.05.21"]
[Round "-"]
[White "McSlash1"]
[Black "gamechessandmatch"]
[Result "1-0"]
[WhiteElo "1984"]
[BlackElo "397"]
[TimeControl "300"]
[EndTime "8:14:15 PDT"]
[Termination "McSlash1 won by resignation"]

1. e4 {[%clk 0:04:59.5]} 1... e5 {[%clk 0:04:56.3]} 2. Nf3 {[%clk 0:04:58.4]}
2... Nc6 {[%clk 0:04:54.3]} 3. Bb5 {[%clk 0:04:56.9]} 3... f5 {[%clk 0:04:51.9]}
4. Bxc6 {[%clk 0:04:53.1]} 4... fxe4 {[%clk 0:04:45.1]} 5. Bxe4 {[%clk 0:04:53]}
5... Nf6 {[%clk 0:04:41.4]} 6. d3 {[%clk 0:04:50.6]} 6... Bb4+ {[%clk
0:04:27.2]} 7. c3 {[%clk 0:04:49]} 7... Bc5 {[%clk 0:04:25.4]} 8. d4 {[%clk
0:04:46.7]} 8... Bd6 {[%clk 0:04:13]} 9. dxe5 {[%clk 0:04:45]} 9... Bxe5 {[%clk
0:04:09.9]} 10. Nxe5 {[%clk 0:04:44.9]} 10... Nxe4 {[%clk 0:04:03.9]} 11. Qd5
{[%clk 0:04:35]} 11... Qh4 {[%clk 0:03:55.5]} 12. O-O {[%clk 0:04:19]} 12... Ng5
{[%clk 0:03:42.7]} 13. g3 {[%clk 0:04:06.2]} 13... Qe4 {[%clk 0:03:38.4]} 14.
Qxe4 {[%clk 0:04:04.1]} 14... Nxe4 {[%clk 0:03:36.8]} 15. Re1 {[%clk 0:04:03.6]}
15... d6 {[%clk 0:03:25.2]} 16. Nc4 {[%clk 0:03:58.4]} 16... d5 {[%clk
0:03:15.6]} 17. Ne5 {[%clk 0:03:54.8]} 17... O-O {[%clk 0:03:12.9]} 18. Be3
{[%clk 0:03:48.6]} 18... Bh3 {[%clk 0:03:07.6]} 19. Nd2 {[%clk 0:03:46.7]} 19...
Rxf2 {[%clk 0:02:49.5]} 20. Bxf2 {[%clk 0:03:43.3]} 20... Rf8 {[%clk 0:02:44.4]}
21. Nxe4 {[%clk 0:03:41.5]} 1-0

[Event "Live Chess"]
[Site "Chess.com"]
[Date "2023.05.21"]
[Round "-"]
[White "Conradical12"]
[Black "Mechhead7"]
[Result "0-1"]
[WhiteElo "1520"]
[BlackElo "1779"]
[TimeControl "300"]
[EndTime "8:14:15 PDT"]
[Termination "Mechhead7 won by resignation"]

1. e4 {[%clk 0:04:57.8]} 1... Nf6 {[%clk 0:04:58.2]} 2. d4 {[%clk 0:04:54.6]}
2... Nxe4 {[%clk 0:04:55.8]} 3. Bd3 {[%clk 0:04:52]} 3... Nf6 {[%clk 0:04:54.3]}
4. Nf3 {[%clk 0:04:50.7]} 4... d5 {[%clk 0:04:53.2]} 5. O-O {[%clk 0:04:49.7]}
5... Bg4 {[%clk 0:04:51.7]} 6. Re1 {[%clk 0:04:48.3]} 6... e6 {[%clk 0:04:50.4]}
7. Nbd2 {[%clk 0:04:43.6]} 7... Be7 {[%clk 0:04:46.9]} 8. c3 {[%clk 0:04:42.6]}
8... O-O {[%clk 0:04:45.1]} 9. Qc2 {[%clk 0:04:42]} 9... Nbd7 {[%clk 0:04:41]}
10. Ne5 {[%clk 0:04:39.2]} 10... Bh5 {[%clk 0:04:36.1]} 11. Ndf3 {[%clk
0:04:35.9]} 11... c5 {[%clk 0:04:26.9]} 12. Bg5 {[%clk 0:04:31.6]} 12... cxd4
{[%clk 0:04:17.5]} 13. Nxd7 {[%clk 0:04:29.6]} 13... Nxd7 {[%clk 0:04:14.4]} 14.
Bxe7 {[%clk 0:04:27.6]} 14... Qxe7 {[%clk 0:04:13.4]} 15. Nxd4 {[%clk
0:04:25.8]} 15... Rac8 {[%clk 0:04:05.2]} 16. Nf5 {[%clk 0:04:22.8]} 16... Qf6
{[%clk 0:04:02.6]} 17. Nd6 {[%clk 0:04:18.9]} 17... Rc6 {[%clk 0:04:01.1]} 18.
Nb5 {[%clk 0:04:16]} 18... a6 {[%clk 0:03:59.9]} 19. Nd4 {[%clk 0:04:14.5]}
19... Rcc8 {[%clk 0:03:48.8]} 20. Re3 {[%clk 0:04:11.4]} 20... Bg6 {[%clk
0:03:47]} 21. Bxg6 {[%clk 0:04:08.7]} 21... hxg6 {[%clk 0:03:45.9]} 22. Rh3
{[%clk 0:04:06.9]} 22... e5 {[%clk 0:03:40.7]} 23. Nf3 {[%clk 0:04:04.8]} 23...
e4 {[%clk 0:03:33.1]} 24. Nd4 {[%clk 0:04:03.4]} 24... Qxd4 {[%clk 0:03:32.1]}
25. cxd4 {[%clk 0:04:01.4]} 25... Rxc2 {[%clk 0:03:31.1]} 26. Re1 {[%clk
0:03:57.7]} 26... Rfc8 {[%clk 0:03:27.2]} 0-1

[Event "Live Chess"]
[Site "Chess.com"]
[Date "2023.05.21"]
[Round "-"]
[White "SupremeTactician"]
[Black "Crowded_House"]
[Result "1/2-1/2"]
[WhiteElo "2196"]
[BlackElo "1615"]
[TimeControl "300"]
[EndTime "8:14:19 PDT"]
[Termination "Game drawn by repetition"]

1. e4 {[%clk 0:04:58.8]} 1... e6 {[%clk 0:04:59]} 2. d4 {[%clk 0:04:57.7]} 2...
d5 {[%clk 0:04:58.5]} 3. Be3 {[%clk 0:04:57.6]} 3... dxe4 {[%clk 0:04:55.3]} 4.
Nd2 {[%clk 0:04:57.5]} 4... Nf6 {[%clk 0:04:53.6]} 5. c3 {[%clk 0:04:57.4]} 5...
Bd6 {[%clk 0:04:50.5]} 6. Qc2 {[%clk 0:04:57.3]} 6... O-O {[%clk 0:04:48.6]} 7.
Nxe4 {[%clk 0:04:56.7]} 7... Nxe4 {[%clk 0:04:47.9]} 8. Qxe4 {[%clk 0:04:56.6]}
8... Nd7 {[%clk 0:04:43.6]} 9. Nf3 {[%clk 0:04:53.8]} 9... Nf6 {[%clk
0:04:43.3]} 10. Qc2 {[%clk 0:04:53.5]} 10... b6 {[%clk 0:04:40.3]} 11. Bd3
{[%clk 0:04:52.5]} 11... Bb7 {[%clk 0:04:38.4]} 12. Be2 {[%clk 0:04:49.8]} 12...
Nd5 {[%clk 0:04:28.1]} 13. O-O {[%clk 0:04:48]} 13... Nxe3 {[%clk 0:04:26.8]}
14. fxe3 {[%clk 0:04:47.9]} 14... c5 {[%clk 0:04:16.4]} 15. Rad1 {[%clk
0:04:45.4]} 15... Qc7 {[%clk 0:04:10.4]} 16. e4 {[%clk 0:04:39.9]} 16... cxd4
{[%clk 0:04:07.4]} 17. Rxd4 {[%clk 0:04:37.8]} 17... Bc5 {[%clk 0:04:05]} 18.
Qd2 {[%clk 0:04:34.9]} 18... Bxd4+ {[%clk 0:04:03.7]} 19. cxd4 {[%clk
0:04:34.8]} 19... Bxe4 {[%clk 0:03:55.1]} 20. Ne5 {[%clk 0:04:34]} 20... Bg6
{[%clk 0:03:45.6]} 21. h4 {[%clk 0:04:26.5]} 21... f6 {[%clk 0:03:38.8]} 22.
Nxg6 {[%clk 0:04:25.2]} 22... hxg6 {[%clk 0:03:37.5]} 23. Bd3 {[%clk 0:04:24.4]}
23... f5 {[%clk 0:03:26.9]} 24. Qe3 {[%clk 0:04:23]} 24... Rae8 {[%clk
0:03:17.6]} 25. Qg5 {[%clk 0:04:18.4]} 25... Qe7 {[%clk 0:03:14.5]} 26. Qxg6
{[%clk 0:04:16.7]} 26... Qxh4 {[%clk 0:03:06.5]} 27. Rf3 {[%clk 0:04:15.5]}
27... Qxd4+ {[%clk 0:03:04.5]} 28. Kh1 {[%clk 0:04:13.8]} 28... Qg4 {[%clk
0:02:42.9]} 29. Qxg4 {[%clk 0:03:59.1]} 29... fxg4 {[%clk 0:02:41.9]} 30. Rg3
{[%clk 0:03:58.2]} 30... Rd8 {[%clk 0:02:33.5]} 31. Bc4 {[%clk 0:03:55.7]} 31...
Rf6 {[%clk 0:02:27.3]} 32. Rxg4 {[%clk 0:03:54.1]} 32... Rd1+ {[%clk 0:02:24.2]}
33. Kh2 {[%clk 0:03:53.3]} 33... Rh6+ {[%clk 0:02:23]} 34. Kg3 {[%clk
0:03:52.4]} 34... Rf6 {[%clk 0:02:17.6]} 35. Re4 {[%clk 0:03:50.7]} 35... Rd6
{[%clk 0:02:14.3]} 36. a3 {[%clk 0:03:49.2]} 36... Rg6+ {[%clk 0:02:11.6]} 37.
Kf3 {[%clk 0:03:48]} 37... Rf6+ {[%clk 0:02:08.5]} 38. Kg3 {[%clk 0:03:47.3]}
38... Rg6+ {[%clk 0:02:07.9]} 39. Kf3 {[%clk 0:03:46.7]} 39... Rf6+ {[%clk
0:02:07.3]} 40. Kg3 {[%clk 0:03:46.2]} 1/2-1/2

[Event "Live Chess"]
[Site "Chess.com"]
[Date "2023.05.21"]
[Round "-"]
[White "EdenHazard8"]
[Black "Tiltador"]
[Result "1-0"]
[WhiteElo "1925"]
[BlackElo "907"]
[TimeControl "300"]
[EndTime "8:14:22 PDT"]
[Termination "EdenHazard8 won by checkmate"]

1. e4 {[%clk 0:04:55.7]} 1... e5 {[%clk 0:04:58.9]} 2. Nf3 {[%clk 0:04:54.7]}
2... d6 {[%clk 0:04:57.3]} 3. Bc4 {[%clk 0:04:54.1]} 3... f6 {[%clk 0:04:56.1]}
4. Nh4 {[%clk 0:04:52.8]} 4... Ne7 {[%clk 0:04:55.1]} 5. Nc3 {[%clk 0:04:50.8]}
5... c6 {[%clk 0:04:53.8]} 6. d3 {[%clk 0:04:48.8]} 6... d5 {[%clk 0:04:53]} 7.
exd5 {[%clk 0:04:47.3]} 7... Nxd5 {[%clk 0:04:49.8]} 8. Bb5 {[%clk 0:04:47.2]}
8... cxb5 {[%clk 0:04:46.2]} 9. Qh5+ {[%clk 0:04:45.4]} 9... g6 {[%clk
0:04:39.8]} 10. Nxg6 {[%clk 0:04:44.3]} 10... Nf4 {[%clk 0:04:27.9]} 11. Nxf4+
{[%clk 0:04:40.4]} 11... Kd7 {[%clk 0:04:18.5]} 12. Qf7+ {[%clk 0:04:37.4]}
12... Qe7 {[%clk 0:04:16.1]} 13. Qd5+ {[%clk 0:04:35.6]} 13... Qd6 {[%clk
0:04:12.4]} 14. Qxd6+ {[%clk 0:04:29.6]} 14... Bxd6 {[%clk 0:04:10.1]} 15. Nfd5
{[%clk 0:04:27.8]} 15... Nc6 {[%clk 0:04:03.5]} 16. Nxb5 {[%clk 0:04:25.1]}
16... Nd4 {[%clk 0:03:56.1]} 17. Nxd4 {[%clk 0:04:21.3]} 17... exd4 {[%clk
0:03:54.3]} 18. Nxf6+ {[%clk 0:04:20.7]} 18... Kc7 {[%clk 0:03:50.2]} 19. Ne4
{[%clk 0:04:20.6]} 19... Bg4 {[%clk 0:03:45.9]} 20. f3 {[%clk 0:04:18.1]} 20...
Bh5 {[%clk 0:03:44.2]} 21. Nxd6 {[%clk 0:04:15.6]} 21... Kxd6 {[%clk 0:03:42.4]}
22. Bf4+ {[%clk 0:04:15.5]} 22... Kd5 {[%clk 0:03:39.8]} 23. Kf2 {[%clk
0:04:15.4]} 23... Raf8 {[%clk 0:03:36.3]} 24. Bg3 {[%clk 0:04:14.4]} 24... Bg6
{[%clk 0:03:27.5]} 25. Rhe1 {[%clk 0:04:12.4]} 25... Re8 {[%clk 0:03:26]} 26.
Rxe8 {[%clk 0:04:08.6]} 26... Rxe8 {[%clk 0:03:24.6]} 27. Re1 {[%clk 0:04:08.4]}
27... Rxe1 {[%clk 0:03:20.7]} 28. Kxe1 {[%clk 0:04:08.3]} 28... b5 {[%clk
0:03:18.8]} 29. Kd2 {[%clk 0:04:07.5]} 29... a5 {[%clk 0:03:17.8]} 30. Bf2
{[%clk 0:04:07.4]} 30... h5 {[%clk 0:03:08.2]} 31. c3 {[%clk 0:04:05.6]} 31...
dxc3+ {[%clk 0:03:05.6]} 32. bxc3 {[%clk 0:04:05.5]} 32... Bf5 {[%clk
0:02:57.4]} 33. h3 {[%clk 0:03:58.3]} 33... b4 {[%clk 0:02:40.9]} 34. cxb4
{[%clk 0:03:54.9]} 34... axb4 {[%clk 0:02:39.9]} 35. g4 {[%clk 0:03:54.8]} 35...
hxg4 {[%clk 0:02:37]} 36. hxg4 {[%clk 0:03:54.7]} 36... Bg6 {[%clk 0:02:35.1]}
37. f4 {[%clk 0:03:53.1]} 37... Ke6 {[%clk 0:02:27.3]} 38. f5+ {[%clk
0:03:51.5]} 38... Bxf5 {[%clk 0:02:22.7]} 39. gxf5+ {[%clk 0:03:51.4]} 39...
Kxf5 {[%clk 0:02:21.8]} 40. Bc5 {[%clk 0:03:51.3]} 40... Ke5 {[%clk 0:02:21]}
41. Bxb4 {[%clk 0:03:50.4]} 41... Kd4 {[%clk 0:02:20.2]} 42. a4 {[%clk
0:03:49.4]} 42... Kd5 {[%clk 0:02:18.7]} 43. a5 {[%clk 0:03:48.6]} 43... Kc6
{[%clk 0:02:18]} 44. Kc3 {[%clk 0:03:48.5]} 44... Kb5 {[%clk 0:02:16.9]} 45. d4
{[%clk 0:03:47.8]} 45... Kc6 {[%clk 0:02:14.9]} 46. Kc4 {[%clk 0:03:47.7]} 46...
Kb7 {[%clk 0:02:13.2]} 47. d5 {[%clk 0:03:47.6]} 47... Kc7 {[%clk 0:02:12]} 48.
d6+ {[%clk 0:03:47.5]} 48... Kd7 {[%clk 0:02:10.7]} 49. a6 {[%clk 0:03:46.7]}
49... Kc8 {[%clk 0:02:10]} 50. a7 {[%clk 0:03:46.6]} 50... Kb7 {[%clk
0:02:09.1]} 51. d7 {[%clk 0:03:45.5]} 51... Kxa7 {[%clk 0:02:07.8]} 52. d8=Q
{[%clk 0:03:44.6]} 52... Ka6 {[%clk 0:02:06.7]} 53. Qa5+ {[%clk 0:03:43.5]}
53... Kb7 {[%clk 0:02:05.4]} 54. Qb5+ {[%clk 0:03:43.4]} 54... Kc8 {[%clk
0:02:01.9]} 55. Qa6+ {[%clk 0:03:41.9]} 55... Kd7 {[%clk 0:02:01]} 56. Qd6+
{[%clk 0:03:40.8]} 56... Ke8 {[%clk 0:01:57.5]} 57. Qe7# {[%clk 0:03:40]} 1-0

[Event "Live Chess"]
[Site "Chess.com"]
[Date "2023.05.21"]
[Round "-"]
[White "ramses-IIG"]
[Black "TheSmoulderingMaster"]
[Result "0-1"]
[WhiteElo "873"]
[BlackElo "1657"]
[TimeControl "300"]
[EndTime "8:14:24 PDT"]
[Termination "TheSmoulderingMaster won by resignation"]

1. e4 {[%clk 0:04:58.9]} 1... c5 {[%clk 0:04:58.7]} 2. Nf3 {[%clk 0:04:58.8]}
2... d6 {[%clk 0:04:57.4]} 3. Bc4 {[%clk 0:04:57.2]} 3... Nc6 {[%clk 0:04:56.1]}
4. Ng5 {[%clk 0:04:52.9]} 4... e6 {[%clk 0:04:54.5]} 5. d3 {[%clk 0:04:49.7]}
5... Nf6 {[%clk 0:04:50.7]} 6. c3 {[%clk 0:04:44.7]} 6... Be7 {[%clk 0:04:50]}
7. Qf3 {[%clk 0:04:38.3]} 7... O-O {[%clk 0:04:48.9]} 8. h4 {[%clk 0:04:35.5]}
8... Ne5 {[%clk 0:04:47.8]} 9. Qg3 {[%clk 0:04:27.3]} 9... a6 {[%clk 0:04:46.2]}
10. h5 {[%clk 0:04:18]} 10... b5 {[%clk 0:04:44.3]} 11. Bb3 {[%clk 0:04:15.3]}
11... Bb7 {[%clk 0:04:41.9]} 12. Bd1 {[%clk 0:04:04.4]} 12... c4 {[%clk
0:04:37.3]} 13. h6 {[%clk 0:03:44.8]} 13... Nxd3+ {[%clk 0:04:34.1]} 14. Kd2
{[%clk 0:03:35.9]} 14... Bxe4 {[%clk 0:04:28.6]} 15. hxg7 {[%clk 0:03:18.2]}
15... Re8 {[%clk 0:04:23.2]} 16. Nxe4 {[%clk 0:03:08.5]} 16... Nxe4+ {[%clk
0:04:20.3]} 17. Kc2 {[%clk 0:03:04]} 17... Nxg3 {[%clk 0:04:18.1]} 0-1